bitfinex/quotes_SOLUSD_20241001
["timestamp","ask_amount","ask_price","bid_price","bid_amount"]
[1727818713576,26.8909,145.12,145.07,6.8931]
[1727818713780,26.8909,145.12,145.08,6.8926]
[1727818714172,20.0,145.12,145.08,6.8926]
[1727818715167,20.0,145.12,145.07,17.2325]
[1727818715168,20.0,145.12,145.09,6.8921]
[1727818715362,14.07387439,145.13,145.09,6.8921]
[1727818717370,7.18327439,145.13,145.07,24.1252]
[1727818717564,6.8913,145.11,145.07,24.1255]
[1727818717780,7.18327439,145.13,145.08,6.8927]
[1727818717980,6.8909,145.12,145.08,6.8927]
[1727818724281,14.07387439,145.13,145.07,17.2325]
[1727818724599,6.8909,145.12,145.08,6.8924]
[1727818725099,14.07407439,145.13,145.08,6.8924]
[1727818729390,14.07407439,145.13,145.09,6.8919]
[1727818730199,7.18327439,145.13,145.08,16.2194]
[1727818730506,1.2004896,145.15,145.09,12.80087793]
[1727818730676,1.2004896,145.15,145.08,56.6841]
[1727818730677,20.0,145.17,145.13,6.8901]
[1727818730984,6.8881,145.18,145.13,6.8901]
[1727818732788,7.1880114,145.19,145.16,6.8887]
[1727818733189,6.8866,145.21,145.17,6.8884]
[1727818733387,20.0,145.2,145.17,6.8884]
[1727818733590,26.8861,145.22,145.17,6.8884]
[1727818736375,20.0,145.2,145.17,6.8884]
[1727818737382,20.0,145.2,145.16,6.8889]
[1727818738999,20.0,145.19,145.15,24.112]
[1727818739198,20.0,145.19,145.16,6.8888]
[1727818739704,20.0,145.2,145.17,6.8884]
[1727818740491,20.0,145.22,145.16,6.8888]
[1727818740690,20.0,145.19,145.16,6.8888]
[1727818741285,6.888,145.18,145.13,6.89]
[1727818741486,6.888,145.18,145.12,41.003584]
[1727818741487,6.8875,145.19,145.12,53.80446193]
[1727818741908,6.8871,145.2,145.15,6.8893]
[1727818742207,20.0,145.19,145.14,17.224]
[1727818742384,20.0,145.19,145.16,6.8888]
[1727818743329,20.0,145.2,145.16,6.8888]
[1727818744305,20.0,145.2,145.17,6.8883]
[1727818744506,6.8862,145.22,145.17,6.8883]
[1727818745805,6.8862,145.22,145.16,17.2217]
[1727818746002,6.8862,145.22,145.18,6.8879]
[1727818746790,20.0,145.22,145.14,6.2094]
[1727818747007,20.0,145.22,145.11,34.99937793]
[1727818747008,6.8893,145.16,145.11,34.99937793]
[1727818747311,6.8893,145.16,145.11,28.10857793]
[1727818747503,6.8886,145.17,145.12,6.8908]
[1727818749301,6.8886,145.17,145.12,23.776884]
[1727818749506,6.8886,145.17,145.13,6.8902]
[1727818751706,6.8881,145.18,145.13,6.8902]
[1727818753898,26.8874,145.2,145.15,6.889]
[1727818754219,20.0,145.2,145.17,6.8883]
[1727818754421,32.3269,145.24,145.17,6.8883]
[1727818754597,8.08544341,145.23,145.19,6.8873]
[1727818754797,6.8857,145.23,145.19,6.8873]
[1727818754999,6.8857,145.23,145.18,6.8878]
[1727818755302,6.8857,145.23,145.19,24.1055]
[1727818755703,20.0,145.22,145.19,24.1055]
[1727818755897,6.8861,145.22,145.19,17.2181]
[1727818756409,20.0,145.23,145.19,17.2181]
[1727818756410,26.8857,145.23,145.19,17.2181]
[1727818756610,20.0,145.23,145.19,24.1053]
[1727818757935,14.06932177,145.24,145.19,24.1053]
[1727818759600,7.18412177,145.24,145.22,6.8858]
[1727818759821,1.19957843,145.26,145.22,6.8858]
[1727818759822,20.0,145.25,145.22,6.8858]
[1727818760004,6.8843,145.26,145.22,6.8858]
[1727818760206,24.11452939,145.28,145.21,17.2158]
[1727818760517,6.8845,145.26,145.21,17.2158]
[1727818760715,7.18783744,145.29,145.24,6.8851]
[1727818760899,6.8836,145.28,145.24,6.8851]
[1727818761307,20.0,145.27,145.24,6.8851]
[1727818762019,20.0,145.27,145.23,24.099]
[1727818762725,20.0,145.26,145.23,17.2135]
[1727818763228,6.8838,145.27,145.23,17.2135]
[1727818764223,14.07053744,145.29,145.25,6.8846]
[1727818764402,6.8827,145.29,145.25,6.8846]
[1727818765406,6.8824,145.3,145.25,6.8846]
[1727818767316,20.0,145.31,145.27,6.8837]
[1727818767628,20.0,145.31,145.27,12.80087793]
[1727818769109,6.8809,145.33,145.29,6.8827]
[1727818769308,6.8809,145.33,145.3,1.37629539]
[1727818769512,6.8809,145.33,145.29,6.8827]
[1727818769914,6.8804,145.34,145.3,30.658984]
[1727818770121,6.88,145.35,145.31,6.8818]
[1727818770329,20.0,145.34,145.31,6.8818]
[1727818770915,7.18606292,145.36,145.31,6.8818]
[1727818771122,14.06556292,145.36,145.31,6.8818]
[1727818774730,14.06556292,145.36,145.32,6.8813]
[1727818775424,6.8795,145.36,145.32,6.8813]
[1727818775628,6.8791,145.37,145.33,6.8808]
[1727818775929,20.0,145.36,145.32,24.0844]
[1727818778530,20.0,145.36,145.33,6.8806]
[1727818778713,6.8791,145.37,145.32,17.2032]
[1727818778915,20.0,145.36,145.32,17.2032]
[1727818779127,20.0,145.36,145.32,24.0841]
[1727818779336,20.0,145.38,145.32,17.2032]
[1727818779516,20.0,145.38,145.33,6.8804]
[1727818779720,26.8785,145.38,145.34,6.8803]
[1727818780512,6.8785,145.38,145.34,6.8803]
[1727818782920,8.3953407,145.39,145.34,6.8803]
[1727818782921,8.3953407,145.39,145.37,6.8789]
[1727818783224,6.8767,145.42,145.38,6.8785]
[1727818783431,6.8767,145.42,145.37,1.37555426]
[1727818783622,6.8767,145.42,145.37,8.25435426]
[1727818784137,1.19803116,145.45,145.38,6.8784]
[1727818784316,6.8762,145.43,145.38,19.67927793]
[1727818784641,6.8762,145.43,145.38,29.99657793]
[1727818784845,6.8762,145.43,145.39,6.878]
[1727818785144,6.8762,145.43,145.38,29.99657793]
[1727818785145,20.0,145.43,145.4,6.8774]
[1727818785315,7.19435578,145.46,145.38,29.99657793]
[1727818785513,6.876,145.44,145.39,30.654784]
[1727818785943,6.8771,145.41,145.39,23.776884]
[1727818787131,6.8766,145.42,145.38,23.776884]
[1727818788320,6.8766,145.42,145.38,30.655284]
[1727818788928,6.8766,145.42,145.38,43.45616193]
[1727818789948,6.8775,145.41,145.38,12.80087793]
[1727818794845,20.0,145.43,145.38,12.80087793]
[1727818795027,6.8767,145.42,145.38,12.80087793]
[1727818797147,6.8771,145.41,145.38,12.80087793]
[1727818797535,6.8791,145.37,145.34,21.587]
[1727818797734,6.8785,145.38,145.34,41.26787793]
[1727818797936,17.1925,145.42,145.34,41.26787793]
[1727818797937,6.8781,145.39,145.34,34.38787793]
[1727818798126,6.8781,145.39,145.35,6.8799]
[1727818798542,6.8781,145.39,145.35,19.68077793]
[1727818798845,6.8781,145.39,145.35,12.80087793]
[1727818800231,17.1945,145.4,145.3,22.0311]
[1727818800530,6.8812,145.33,145.3,34.83197793]
[1727818800747,6.8814,145.32,145.3,15.3755]
[1727818801063,6.8824,145.3,145.28,12.80087793]
[1727818801351,7.44958259,145.4,145.28,12.80087793]
[1727818801352,20.0,145.38,145.28,12.80087793]
[1727818801542,6.8818,145.31,145.28,12.80087793]
[1727818802053,6.8814,145.32,145.28,12.80087793]
[1727818802592,17.1981,145.37,145.28,12.80087793]
[1727818802593,6.8819,145.31,145.28,12.80087793]
[1727818804638,6.8813,145.32,145.29,23.776884]
[1727818804950,7.19255012,145.34,145.29,30.659284]
[1727818805153,7.19255012,145.34,145.28,36.57776193]
[1727818805365,7.19255012,145.34,145.31,24.0855]
[1727818805657,6.8804,145.34,145.3,12.80087793]
[1727818809065,6.8799,145.35,145.31,6.8818]
[1727818810163,6.8799,145.35,145.3,12.80087793]
[1727818810376,6.8799,145.35,145.3,19.68307793]
[1727818812052,6.8804,145.34,145.3,19.68307793]
[1727818812676,6.8808,145.33,145.3,12.80087793]
[1727818812868,20.0,145.36,145.3,12.80087793]
[1727818813075,20.0,145.36,145.32,17.2028]
[1727818813262,26.8798,145.36,145.32,17.2028]
[1727818813475,20.0,145.36,145.32,24.0841]
[1727818814657,7.19091973,145.37,145.33,6.8805]
[1727818815061,6.8785,145.38,145.33,6.8805]
[1727818815255,7.18863594,145.4,145.35,6.8798]
[1727818815583,7.18863594,145.4,145.34,17.2002]
[1727818815584,14.06623594,145.4,145.36,6.8794]
[1727818815878,6.8776,145.4,145.36,6.8794]
[1727818817653,6.8776,145.4,145.34,30.00107793]
[1727818817989,6.8776,145.4,145.35,30.656684]
[1727818818285,6.8772,145.41,145.37,6.8789]
[1727818818477,26.8775,145.41,145.37,23.776884]
[1727818821190,8.38650906,145.42,145.39,6.878]
[1727818821484,8.07502689,145.42,145.38,17.1958]
[1727818821670,20.0,145.45,145.38,24.0742]
[1727818822684,6.8772,145.41,145.37,6.8787]
[1727818823264,23.33279352,145.46,145.36,12.80087793]
[1727818823472,23.33279352,145.46,145.37,17.1963]
[1727818823777,6.8766,145.42,145.38,6.8783]
[1727818823959,6.8766,145.42,145.38,22.9978]
[1727818827775,6.8766,145.42,145.38,16.1195]
[1727818828077,6.8766,145.42,145.38,22.9978]
[1727818829368,6.876,145.44,145.4,17.1938]
[1727818829680,6.876,145.44,145.4,24.0712]
[1727818833063,6.8752,145.45,145.41,30.653784]
[1727818834764,24.36976474,145.48,145.41,30.653784]
[1727818834970,26.8744,145.47,145.42,6.8762]
[1727818835182,26.8744,145.47,145.43,25.15177765]
[1727818835482,26.8744,145.47,145.43,32.02787765]
[1727818836978,26.8744,145.47,145.43,30.652984]
[1727818837488,26.8744,145.47,145.43,23.776884]
[1727818837787,7.18486474,145.48,145.43,23.776884]
[1727818837997,6.8748,145.46,145.43,23.776884]
[1727818839891,6.8748,145.46,145.43,38.979884]
[1727818848391,7.18486474,145.48,145.45,6.8752]
[1727818848682,6.8741,145.48,145.44,31.3643866]
[1727818849077,6.8742,145.47,145.44,31.3643866]
[1727818849668,6.8742,145.47,145.44,14.1757866]
[1727818850781,0.8229238,145.49,145.44,14.1757866]
[1727818850782,6.8741,145.48,145.44,14.1757866]
[1727818851165,6.8743,145.47,145.44,14.1757866]
[1727818852177,0.8229238,145.49,145.45,6.227]
[1727818852370,6.8741,145.48,145.45,6.227]
[1727818853484,6.8741,145.48,145.46,1.37484678]
[1727818853890,7.6963238,145.49,145.46,1.37484678]
[1727818854600,7.6963238,145.49,145.46,14.17572471]
[1727818854794,0.8229238,145.49,145.46,14.17572471]
[1727818854968,0.8229238,145.49,145.46,21.05032471]
[1727818856296,0.8229238,145.49,145.46,14.17572471]
[1727818856481,0.8229238,145.49,145.48,43.45146193]
[1727818856673,0.8229238,145.49,145.48,58.67536193]
[1727818857380,0.8229238,145.49,145.48,78.67536193]
[1727818857685,6.1905,145.6,145.5,23.776884]
[1727818857686,17.1725,145.59,145.5,23.776884]
[1727818857985,6.87,145.56,145.51,6.872]
[1727818858503,6.87,145.56,145.5,23.776884]
[1727818858671,6.87,145.56,145.52,6.8718]
[1727818859074,6.87,145.56,145.53,1.37406424]
[1727818859284,6.8695,145.57,145.53,1.37406424]
[1727818860598,6.8695,145.57,145.53,23.776884]
[1727818860796,6.8695,145.57,145.54,1.37390863]
[1727818861776,14.04800875,145.59,145.54,8.24450863]
[1727818861976,6.8691,145.58,145.54,8.24450863]
[1727818862399,6.8691,145.58,145.54,1.37390863]
[1727818865303,14.04760875,145.59,145.54,8.24470863]
[1727818865804,6.8686,145.59,145.55,6.8704]
[1727818865990,6.8686,145.59,145.54,24.00580863]
[1727818867780,6.868,145.61,145.56,24.0446]
[1727818867997,6.8681,145.6,145.56,25.41834291]
[1727818868504,6.8681,145.6,145.56,18.54844291]
[1727818869195,6.8677,145.61,145.57,6.8694]
[1727818870676,0.8229238,145.64,145.58,6.8688]
[1727818871008,6.8673,145.62,145.57,6.8694]
[1727818872486,6.8673,145.62,145.57,23.776884]
[1727818872702,20.8229238,145.64,145.58,14.17434444]
[1727818872906,27.6891238,145.64,145.59,6.8682]
[1727818873083,27.6891238,145.64,145.6,1.37343253]
[1727818873282,27.6891238,145.64,145.6,8.24153253]
[1727818873601,27.6891238,145.64,145.6,1.37343253]
[1727818873786,7.6891238,145.64,145.6,1.37343253]
[1727818874183,7.6891238,145.64,145.58,29.97297793]
[1727818874184,7.6891238,145.64,145.58,33.5296]
[1727818874391,7.6891238,145.64,145.61,6.8676]
[1727818874392,0.8229238,145.64,145.61,6.8676]
[1727818874686,0.8229238,145.64,145.62,23.776884]
[1727818874997,0.8229238,145.64,145.63,23.776884]
[1727818875407,0.8229238,145.64,145.63,32.01650905]
[1727818876180,0.8229238,145.64,145.63,64.81738698]
[1727818876380,6.0722,145.74,145.68,6.8642]
[1727818876381,6.8619,145.74,145.68,6.8642]
[1727818876590,6.8951238,145.78,145.7,12.80087793]
[1727818876591,7.1720011,145.76,145.7,12.80087793]
[1727818876880,7.1720011,145.76,145.71,1.37240647]
[1727818877802,0.3111011,145.76,145.72,23.776884]
[1727818878098,0.3111011,145.76,145.74,23.776884]
[1727818878308,0.3111011,145.76,145.7,16.3575]
[1727818878509,0.3111011,145.76,145.71,23.776884]
[1727818878683,7.1717011,145.76,145.71,23.776884]
[1727818879296,0.3111011,145.76,145.71,30.639684]
[1727818879804,0.3111011,145.76,145.73,23.776884]
[1727818880104,0.3111011,145.76,145.72,23.776884]
[1727818881582,0.3111011,145.76,145.69,24.0228]
[1727818881792,6.0722,145.75,145.66,16.3575]
[1727818882104,6.8629,145.71,145.64,24.0311]
[1727818882306,20.0,145.74,145.64,24.0311]
[1727818882801,20.0,145.74,145.62,23.2242]
[1727818883003,6.8645,145.68,145.62,36.02507793]
[1727818883390,37.1543,145.74,145.62,29.15837793]
[1727818883609,6.8641,145.69,145.62,29.15837793]
[1727818883913,6.8644,145.68,145.62,19.66787793]
[1727818884711,6.8641,145.69,145.62,19.66787793]
[1727818884913,6.8644,145.68,145.62,19.66787793]
[1727818885494,6.8644,145.68,145.62,6.867]
[1727818885697,6.8648,145.67,145.6,24.0375]
[1727818886009,6.8661,145.65,145.57,13.5194]
[1727818886183,6.8663,145.64,145.57,13.5194]
[1727818886387,6.8657,145.66,145.57,6.6503]
[1727818887309,6.8657,145.66,145.58,20.0]
[1727818887814,6.8658,145.65,145.59,6.8685]
[1727818888919,6.0722,145.68,145.59,6.8685]
[1727818888920,6.8653,145.66,145.59,6.8685]
[1727818889417,6.8653,145.66,145.6,6.8679]
[1727818890311,20.0,145.67,145.61,6.8676]
[1727818891023,26.865,145.67,145.6,6.8677]
[1727818891320,26.8648,145.67,145.6,6.8677]
[1727818892396,26.8648,145.67,145.61,23.776884]
[1727818893097,20.0,145.67,145.61,23.776884]
[1727818893315,6.8654,145.66,145.61,23.776884]
[1727818893786,6.8654,145.66,145.59,17.1707]
[1727818893994,26.8647,145.68,145.62,23.776884]
[1727818894603,6.8648,145.67,145.62,23.776884]
[1727818896313,6.8648,145.67,145.61,6.8676]
[1727818898593,6.8648,145.67,145.62,23.776884]
[1727818898792,6.8648,145.67,145.61,6.8676]
[1727818899015,6.8648,145.67,145.62,23.776884]
[1727818900003,6.8648,145.67,145.62,30.643984]
[1727818900311,6.8648,145.67,145.61,6.8676]
[1727818900524,20.0,145.67,145.62,30.643584]
[1727818901291,6.8643,145.68,145.63,6.8666]
[1727818901496,6.8643,145.68,145.62,23.776884]
[1727818903215,6.8643,145.68,145.62,30.643984]
[1727818904020,6.8643,145.68,145.63,6.8666]
[1727818906499,28.30460205,145.7,145.63,1.37306147]
[1727818906706,6.8648,145.67,145.62,30.643984]
[1727818907399,26.8641,145.69,145.64,6.8657]
[1727818907626,6.8649,145.67,145.63,17.1657]
[1727818908502,6.8644,145.68,145.63,24.0323]
[1727818909209,6.8644,145.68,145.62,23.776884]
[1727818909210,6.8653,145.66,145.62,6.8671]
[1727818909414,6.8648,145.68,145.62,6.8671]
[1727818909917,6.8649,145.67,145.62,6.8671]
[1727818911696,6.8649,145.67,145.61,23.776884]
[1727818911697,27.1798802,145.69,145.63,17.1667]
[1727818912301,6.8648,145.68,145.63,24.0333]
[1727818912993,6.8648,145.67,145.63,24.0333]
[1727818914717,27.1798802,145.69,145.62,6.8671]
[1727818915028,27.1798802,145.69,145.61,30.644484]
[1727818915029,6.8656,145.66,145.61,30.644484]
[1727818919518,6.8647,145.68,145.63,6.8666]
[1727818919704,6.8649,145.67,145.63,6.8666]
[1727818920320,6.8649,145.67,145.61,36.47923284]
[1727818920504,6.8649,145.67,145.63,23.776884]
[1727818922224,6.8678,145.61,145.55,6.87]
[1727818922422,17.1654,145.65,145.55,17.1751]
[1727818922601,17.1654,145.65,145.56,6.8698]
[1727818922602,6.8677,145.61,145.56,6.8698]
[1727818923001,20.0,145.64,145.53,6.8712]
[1727818923303,6.8682,145.6,145.52,64.23974884]
[1727818923518,6.8682,145.6,145.55,6.8704]
[1727818925140,6.8682,145.6,145.56,23.776884]
[1727818925828,6.8682,145.6,145.53,6.8713]
[1727818925829,6.8694,145.58,145.53,6.8713]
[1727818926139,23.0538,145.6,145.52,29.88174884]
[1727818926140,6.8702,145.56,145.52,29.88174884]
[1727818926425,6.8695,145.57,145.52,36.75344884]
[1727818927149,23.0538,145.6,145.52,36.75344884]
[1727818927150,6.869,145.58,145.53,30.648184]
[1727818929226,6.8686,145.59,145.54,6.8709]
[1727818930507,23.0538,145.6,145.56,6.8699]
[1727818930508,29.922,145.6,145.56,6.8699]
[1727818930729,23.4392,145.6,145.56,6.8699]
[1727818935933,16.571,145.6,145.56,6.8699]
[1727818936255,16.571,145.6,145.57,23.776884]
[1727818936421,6.8689,145.59,145.54,24.0474]
[1727818936621,6.8689,145.59,145.54,17.1768]
[1727818936845,6.8691,145.58,145.54,24.0473]
[1727818937031,16.571,145.6,145.54,24.0473]
[1727818937233,6.8686,145.59,145.55,6.8703]
[1727818937422,23.4392,145.6,145.55,6.8703]
[1727818939544,23.4392,145.6,145.56,6.8699]
[1727818939918,23.4392,145.6,145.55,30.647184]
[1727818940665,6.8692,145.58,145.54,24.0474]
[1727818940940,16.571,145.6,145.53,12.70234884]
[1727818941320,6.8698,145.57,145.53,19.57364884]
[1727818941717,6.8698,145.57,145.53,6.8713]
[1727818942124,16.571,145.6,145.54,6.8709]
[1727818943142,6.8692,145.58,145.54,6.8709]
[1727818945346,6.8692,145.58,145.53,30.648284]
[1727818946244,6.8696,145.57,145.53,30.648284]
[1727818947027,6.8696,145.57,145.51,29.88304884]
[1727818947028,6.8696,145.57,145.52,30.648584]
[1727818949951,6.8696,145.57,145.53,6.8713]
[1727818951151,6.8692,145.58,145.53,6.8713]
[1727818957051,6.0253,145.59,145.53,6.8713]
[1727818957265,6.8695,145.57,145.53,6.8713]
[1727818958169,6.0253,145.59,145.53,6.8713]
[1727818958170,6.8691,145.58,145.53,6.8713]
[1727818960369,16.571,145.6,145.56,6.8699]
[1727818960564,7.74726121,145.62,145.55,36.47923284]
[1727818960565,6.5507,145.62,145.55,36.47923284]
[1727818960863,6.8676,145.61,145.56,6.8699]
[1727818961062,6.5507,145.62,145.55,53.65473284]
[1727818961269,13.4179,145.62,145.57,6.8694]
[1727818961653,6.5507,145.62,145.57,6.8694]
[1727818961856,6.8677,145.61,145.57,6.8694]
[1727818965189,13.4178,145.62,145.57,6.8694]
[1727818965477,6.8667,145.63,145.59,6.8685]
[1727818966152,22.80683664,145.64,145.59,6.8685]
[1727818966153,29.67303664,145.64,145.59,6.8685]
[1727818966477,6.8667,145.63,145.59,6.8685]
[1727818986287,6.8677,145.61,145.57,17.1732]
[1727818987171,6.8677,145.61,145.57,24.0426]
[1727818992989,7.17667875,145.63,145.57,17.1732]
[1727818993190,6.8672,145.62,145.57,24.0423]
[1727818994399,14.04377875,145.63,145.58,30.645784]
[1727818994576,7.17667875,145.63,145.61,6.8673]
[1727818994777,15.6274,145.64,145.6,6.8677]
[1727818994997,22.494,145.64,145.59,24.0395]
[1727818995205,6.8671,145.63,145.59,17.171]
[1727818995493,22.4939,145.64,145.59,24.0394]
[1727818995994,22.4939,145.64,145.6,6.868]
[1727818996178,15.6274,145.64,145.6,6.868]
[1727818997872,15.6274,145.64,145.61,6.8675]
[1727818998274,13.3693,145.66,145.62,30.643884]
[1727819000785,6.5039,145.66,145.62,30.643884]
[1727819004194,6.8649,145.67,145.62,23.776884]
[1727819004503,6.8649,145.67,145.63,6.8666]
[1727819005584,6.8649,145.67,145.63,19.56894884]
[1727819005782,6.8649,145.67,145.63,6.8666]
[1727819006600,6.8649,145.67,145.62,30.643984]
[1727819007102,6.8649,145.67,145.63,6.8666]
[1727819009892,16.6475,145.68,145.63,19.56894884]
[1727819010099,23.5119,145.68,145.63,6.8666]
[1727819014009,23.5119,145.68,145.64,12.70234884]
[1727819014217,23.5119,145.68,145.63,6.8666]
[1727819023110,23.5119,145.68,145.64,6.8661]
[1727819024497,23.5119,145.68,145.65,12.70234884]
[1727819025018,16.6475,145.68,145.65,12.70234884]
[1727819025910,16.6475,145.68,145.64,6.8661]
[1727819026091,23.5119,145.68,145.64,6.8661]
[1727819030516,16.6475,145.68,145.64,6.8661]
[1727819041112,16.6475,145.68,145.65,6.8656]
[1727819044603,16.6475,145.68,145.64,6.8661]
[1727819047133,16.6475,145.68,145.65,6.8657]
[1727819051921,16.6475,145.68,145.64,6.8661]
[1727819067640,23.5121,145.68,145.64,6.8661]
[1727819072548,16.6475,145.68,145.63,29.86854884]
[1727819072728,16.6475,145.68,145.65,6.8656]
[1727819074737,16.6475,145.68,145.63,29.86854884]
[1727819074941,16.6475,145.68,145.64,6.866]
[1727819082058,23.5118,145.68,145.64,6.866]
[1727819085469,23.5118,145.68,145.63,29.86854884]
[1727819085470,6.8649,145.67,145.63,24.0326]
[1727819085857,23.5119,145.68,145.63,24.0326]
[1727819086258,23.5119,145.68,145.63,17.1662]
[1727819086444,23.5119,145.68,145.64,6.8661]
[1727819093276,23.5119,145.68,145.63,24.0325]
[1727819100652,23.5119,145.68,145.63,17.1662]
[1727819101578,6.8651,145.67,145.63,17.1662]
[1727819106258,6.8651,145.67,145.64,23.776884]
[1727819107366,6.8655,145.66,145.62,6.867]
[1727819107771,6.8655,145.66,145.61,6.8675]
[1727819108473,6.8655,145.66,145.62,23.776884]
[1727819109183,6.8657,145.65,145.61,6.8675]
[1727819110490,6.8657,145.65,145.6,29.87214884]
[1727819110789,6.8657,145.65,145.6,36.74004884]
[1727819113487,20.0,145.67,145.6,36.74004884]
[1727819113696,6.8662,145.64,145.6,36.74004884]
[1727819114265,6.8662,145.64,145.6,29.87214884]
[1727819114785,6.8662,145.64,145.6,17.1698]
[1727819114996,6.8668,145.63,145.6,12.70234884]
[1727819116475,6.8668,145.63,145.58,6.8687]
[1727819116797,6.8668,145.63,145.6,12.70234884]
[1727819118701,6.2842,145.66,145.6,12.70234884]
[1727819118991,6.8667,145.63,145.6,12.70234884]
[1727819123289,15.9667,145.65,145.57,17.173]
[1727819123493,20.0,145.64,145.59,12.70234884]
[1727819123792,6.8676,145.61,145.53,6.0074]
[1727819124092,6.8684,145.6,145.58,12.70234884]
[1727819127587,6.8672,145.62,145.58,12.70234884]
[1727819140186,6.8668,145.63,145.58,29.87424884]
[1727819140386,6.8672,145.62,145.58,36.74324884]
[1727819142007,6.8672,145.62,145.58,24.0409]
[1727819142181,6.8672,145.62,145.58,36.74324884]
[1727819165524,6.8672,145.62,145.58,24.0409]
[1727819179633,6.8677,145.61,145.57,6.8695]
[1727819180325,6.8672,145.62,145.58,6.869]
[1727819186115,20.0,145.64,145.57,17.1734]
[1727819186334,20.0,145.64,145.57,24.0429]
[1727819186335,6.8677,145.61,145.57,24.0429]
[1727819186928,20.0,145.64,145.57,24.0429]
[1727819186929,6.8667,145.63,145.57,17.1734]
[1727819187129,6.8674,145.62,145.58,6.8689]
[1727819193828,6.8674,145.62,145.57,24.0428]
[1727819199937,6.8674,145.62,145.58,6.869]
[1727819200445,6.8674,145.62,145.57,24.0428]
[1727819202031,6.8677,145.61,145.57,24.0428]
[1727819204033,23.1244079,145.65,145.57,24.0428]
[1727819204221,6.8673,145.62,145.57,24.0428]
[1727819204823,6.8673,145.62,145.58,6.869]
[1727819206043,6.8673,145.62,145.57,24.0428]
[1727819210635,6.8673,145.62,145.58,6.869]
[1727819215244,20.0,145.64,145.57,12.70234884]
[1727819215444,26.8662,145.64,145.59,17.171]
[1727819215745,26.8662,145.64,145.59,24.0394]
[1727819215933,20.0,145.62,145.59,24.0394]
[1727819217051,6.8668,145.63,145.59,24.0394]
[1727819217243,20.0,145.62,145.59,24.0394]
[1727819221338,23.1244079,145.65,145.62,6.8671]
[1727819221747,15.9667,145.65,145.62,6.8671]
[1727819222133,15.9667,145.65,145.61,36.73854884]
[1727819222339,15.9667,145.65,145.62,6.8668]
[1727819222750,15.9667,145.65,145.61,29.87094884]
[1727819222751,6.8649,145.67,145.63,12.70234884]
[1727819222936,6.8649,145.67,145.63,19.56864884]
[1727819226563,23.80346574,145.69,145.63,12.70234884]
[1727819226737,20.0,145.68,145.65,6.8655]
[1727819228858,23.5115,145.69,145.65,6.8655]
[1727819229767,16.6476,145.69,145.65,17.164]
[1727819229955,16.6476,145.69,145.65,24.0296]
[1727819230578,16.6476,145.69,145.67,6.8645]
[1727819230862,16.6476,145.69,145.66,6.8652]
[1727819233078,16.6476,145.69,145.65,17.164]
[1727819233079,16.6476,145.69,145.63,12.70234884]
[1727819233256,16.6476,145.69,145.67,24.0263]
[1727819233562,16.6476,145.69,145.65,6.8653]
[1727819233779,16.6476,145.69,145.64,29.86784884]
[1727819233968,16.6476,145.69,145.66,6.8652]
[1727819236050,16.6476,145.69,145.67,6.8644]
[1727819236245,16.6476,145.69,145.68,6.8643]
[1727819236450,16.6476,145.69,145.67,6.8646]
[1727819238747,6.6485,145.7,145.67,6.8646]
[1727819240976,20.0,145.71,145.68,17.1604]
[1727819241179,20.0,145.71,145.68,24.0247]
[1727819244880,13.58992052,145.74,145.7,6.8633]
[1727819245043,24.96088847,145.76,145.7,29.86044884]
[1727819245242,16.9046011,145.76,145.72,6.8621]
[1727819246148,0.3111011,145.76,145.74,6.8614]
[1727819246369,0.3111011,145.76,145.75,6.861]
[1727819246547,0.3111011,145.76,145.75,30.637884]
[1727819247761,0.3111011,145.76,145.75,50.637884]